bitfinex/quotes_BTCUSD_20250303
["timestamp","ask_amount","ask_price","bid_price","bid_amount"]
[1741028216705,0.001,87120.0,87084.0,0.00160743]
[1741028217052,0.229568,87120.0,87085.0,0.344491]
[1741028217252,1.89946,87130.0,87086.0,0.00160725]
[1741028217566,1.89946,87130.0,87089.0,0.1]
[1741028217773,1.89946,87130.0,87083.0,0.04350725]
[1741028217774,1.89946,87130.0,87129.0,0.229544]
[1741028218046,1.89946,87130.0,87120.0,0.0001707]
[1741028218178,0.229565,87122.0,87120.0,0.0001707]
[1741028218382,0.00200895,87121.0,87120.0,0.0001707]
[1741028218563,0.00200895,87123.0,87120.0,0.0001707]
[1741028218763,1.8998014,87130.0,87120.0,0.0001707]
[1741028218974,0.00200883,87129.0,87120.0,0.0001707]
[1741028219205,1.8998014,87130.0,87120.0,0.0001707]
[1741028219616,0.00200883,87129.0,87120.0,0.0001707]
[1741028219846,0.22955,87127.0,87120.0,0.0001707]
[1741028220056,0.0020089,87126.0,87120.0,0.0001707]
[1741028220256,1.8998014,87130.0,87124.0,0.229557]
[1741028220464,1.8998014,87130.0,87129.0,0.229544]
[1741028221017,0.88500023,87130.0,87129.0,0.34408485]
[1741028221191,0.70332892,87130.0,87129.0,0.74408485]
[1741028221391,0.0775,87204.0,87182.0,0.229405]
[1741028221773,1e-06,87183.0,87182.0,0.229405]
[1741028221976,1e-06,87183.0,87181.0,0.01454085]
[1741028222207,0.229403,87183.0,87182.0,0.00079931]
[1741028222376,0.0499,87180.0,87147.0,0.00079984]
[1741028222575,0.0499,87180.0,87129.0,0.007]
[1741028222576,0.229457,87162.0,87161.0,0.01064904]
[1741028222783,0.529457,87162.0,87161.0,4e-08]
[1741028223019,0.529457,87162.0,87129.0,0.007]
[1741028223020,0.52552516,87180.0,87129.0,0.007]
[1741028223216,0.007,87167.0,87133.0,0.229532]
[1741028223421,0.00200834,87166.0,87134.0,0.00080165]
[1741028223619,0.229437,87170.0,87124.0,0.1]
[1741028223828,0.00200792,87169.0,87120.0,0.0001707]
[1741028224052,0.3,87176.0,87120.0,0.0001707]
[1741028224328,0.0499,87180.0,87157.0,0.229469]
[1741028224550,0.0499,87180.0,87145.0,0.1]
[1741028224751,0.0020075,87179.0,87141.0,0.00080045]
[1741028224983,0.0499,87180.0,87142.0,0.00080121]
[1741028225287,0.09513203,87197.0,87182.0,0.229405]
[1741028225416,0.09513203,87197.0,87182.0,0.34394585]
[1741028225611,3e-08,87197.0,87196.0,0.229368]
[1741028225835,3e-08,87201.0,87200.0,0.329357]
[1741028226041,3e-08,87201.0,87200.0,0.34389785]
[1741028226376,0.09585884,87265.0,87194.0,0.1]
[1741028226528,0.09585884,87265.0,87190.0,0.47562516]
[1741028226529,0.229252,87241.0,87215.0,0.229316]
[1741028226733,0.005831,87258.0,87216.0,0.00160506]
[1741028226932,0.09585884,87265.0,87217.0,0.00160492]
[1741028226933,0.00120846,87264.0,87217.0,0.00160492]
[1741028227132,0.09585884,87265.0,87230.0,0.47562516]
[1741028227344,0.09585884,87265.0,87248.0,0.22923]
[1741028227567,0.09585884,87265.0,87252.0,0.229218]
[1741028227804,0.09585884,87265.0,87236.0,0.229263]
[1741028228008,0.09585884,87265.0,87249.0,0.1]
[1741028228146,0.09585884,87265.0,87264.0,0.229189]
[1741028229184,0.09585884,87265.0,87264.0,0.495389]
[1741028229337,8.4e-07,87265.0,87264.0,0.795389]
[1741028229543,0.00549,87289.0,87271.0,0.1]
[1741028229742,0.00549,87289.0,87259.0,0.1]
[1741028229743,0.00549,87289.0,87272.0,0.00160369]
[1741028229945,0.00549,87289.0,87288.0,0.229126]
[1741028230388,1e-06,87289.0,87288.0,0.36903622]
[1741028230629,1e-06,87289.0,87288.0,0.229126]
[1741028231042,1e-06,87289.0,87288.0,0.36903622]
[1741028231272,0.0058308,87307.0,87306.0,0.229079]
[1741028231463,8e-07,87307.0,87306.0,0.36898922]
[1741028231640,0.0058308,87324.0,87319.0,0.1]
[1741028232030,0.0455,87373.0,87319.0,0.1]
[1741028232031,0.03,87366.0,87331.0,0.229013]
[1741028232198,0.03,87366.0,87340.0,0.47562516]
[1741028232398,0.03,87366.0,87343.0,0.1]
[1741028232607,0.03,87364.0,87351.0,0.1]
[1741028232813,0.03,87364.0,87333.0,0.03991022]
[1741028233017,0.03,87364.0,87334.0,0.00160247]
[1741028233173,0.03,87358.0,87330.0,0.47562516]
[1741028233386,0.01794333,87365.0,87310.0,0.47562516]
[1741028233387,0.03,87338.0,87310.0,0.47562516]
[1741028233749,0.03,87309.0,87273.0,0.03518547]
[1741028233973,0.03,87307.0,87276.0,0.7]
[1741028234179,0.03,87296.0,87277.0,0.00160386]
[1741028234385,0.03,87296.0,87295.0,0.229108]
[1741028234931,0.03,87296.0,87293.0,0.229112]
[1741028235141,0.03,87295.0,87294.0,0.33071336]
[1741028235271,0.01795211,87319.0,87290.0,0.03518547]
[1741028235475,0.228987,87341.0,87296.0,0.1]
[1741028235713,0.228982,87343.0,87297.0,0.00160292]
[1741028235909,0.047,87359.0,87306.0,0.229078]
[1741028235910,0.229001,87336.0,87306.0,0.229078]
[1741028236117,0.047,87359.0,87307.0,0.00160312]
[1741028236321,0.047,87359.0,87307.0,0.10160312]
[1741028236528,0.228973,87347.0,87307.0,0.00160312]
[1741028236749,0.00120846,87346.0,87304.0,0.00160289]
[1741028236926,0.00120846,87358.0,87305.0,0.00160323]
[1741028237129,0.04820846,87359.0,87306.0,0.00160289]
[1741028237327,0.00120846,87358.0,87327.0,0.229022]
[1741028237605,0.343293,87389.0,87310.0,0.47562516]
[1741028237606,0.0795,87383.0,87331.0,0.1]
[1741028237816,0.00200308,87372.0,87343.0,0.03]
[1741028238070,0.0795,87383.0,87318.0,0.16452246]
[1741028238071,0.0795,87383.0,87349.0,0.03]
[1741028238236,0.0795,87383.0,87358.0,0.22894]
[1741028238438,0.0795,87383.0,87359.0,0.03119484]
[1741028238635,0.0795,87383.0,87367.0,0.03]
[1741028239240,0.000341,87384.0,87372.0,0.258906]
[1741028241298,0.000341,87384.0,87372.0,0.03]
[1741028241949,0.0379385,87373.0,87372.0,0.03]
[1741028242103,0.0201695,87373.0,87372.0,0.258906]
[1741028243414,0.0201695,87373.0,87362.0,0.03518547]
[1741028243415,0.1497642,87440.0,87391.0,0.03]
[1741028243639,0.1497642,87440.0,87393.0,0.03]
[1741028243640,0.0008084,87439.0,87393.0,0.03]
[1741028243844,0.0008084,87439.0,87412.0,0.03]
[1741028244077,0.0011488,87461.0,87423.0,0.03]
[1741028244362,0.0008084,87446.0,87423.0,0.03]
[1741028244577,0.22877,87424.0,87423.0,0.03]
[1741028245507,0.22877,87424.0,87381.0,0.00160154]
[1741028245508,0.01454085,87424.0,87381.0,0.00160168]
[1741028245759,0.0008084,87423.0,87361.0,0.00160223]
[1741028246042,0.41434581,87420.0,87373.0,0.228901]
[1741028246175,0.228867,87387.0,87360.0,0.39980496]
[1741028246376,0.228858,87391.0,87361.0,0.00160227]
[1741028246575,0.0008084,87390.0,87362.0,0.228932]
[1741028246820,0.0008084,87400.0,87376.0,0.228895]
[1741028246997,0.0797,87420.0,87390.0,0.39980496]
[1741028247201,0.0818,87445.0,87400.0,0.39980496]
[1741028247423,0.0008084,87444.0,87394.0,0.16568]
[1741028247577,0.0008084,87444.0,87395.0,0.00160163]
[1741028247773,0.228813,87408.0,87374.0,0.16568]
[1741028247980,0.0008084,87407.0,87388.0,0.228864]
[1741028248288,0.228789,87417.0,87394.0,0.228846]
[1741028248512,0.2288,87413.0,87390.0,0.228858]
[1741028248693,0.0008084,87412.0,87374.0,0.16568]
[1741028248892,0.0818,87445.0,87390.0,0.39980496]
[1741028249096,0.228758,87429.0,87407.0,0.228814]
[1741028249466,0.0818,87445.0,87408.0,0.00160148]
[1741028249613,0.0008084,87444.0,87390.0,0.228857]
[1741028249812,0.228795,87415.0,87391.0,0.00160164]
[1741028250018,0.0818,87445.0,87391.0,0.00160164]
[1741028250019,0.228791,87416.0,87393.0,0.228849]
[1741028250214,0.01454085,87443.0,87380.0,0.39980496]
[1741028250446,0.01454085,87436.0,87390.0,0.228858]
[1741028250659,0.01454085,87436.0,87358.0,0.1]
[1741028250660,0.1,87433.0,87372.0,0.228905]
[1741028250797,0.1,87427.0,87360.0,0.39980496]
[1741028251003,0.22887,87386.0,87355.0,0.1656]
[1741028251334,0.228879,87383.0,87363.0,0.228928]
[1741028251537,0.01454085,87404.0,87340.0,0.39980496]
[1741028251739,0.01454085,87402.0,87340.0,0.39980496]
[1741028252071,0.228961,87352.0,87324.0,0.0055]
[1741028252312,0.01454085,87396.0,87330.0,0.39980496]
[1741028252515,0.343305,87386.0,87330.0,0.39980496]
[1741028252724,0.0008084,87385.0,87340.0,0.39980496]
[1741028252932,0.0008084,87399.0,87343.0,0.00160274]
[1741028253140,0.0008084,87399.0,87350.0,0.39980496]
[1741028253345,0.0008084,87399.0,87351.0,0.00160231]
[1741028253490,0.0471,87400.0,87375.0,0.228896]
[1741028253694,0.0471,87400.0,87383.0,0.228875]
[1741028253873,0.0008084,87399.0,87357.0,0.228944]
[1741028254080,0.0008084,87399.0,87342.0,0.0055]
[1741028254280,0.0008084,87399.0,87360.0,0.39980496]
[1741028254532,0.0008084,87399.0,87343.0,0.16716249]
[1741028254533,0.0008084,87399.0,87370.0,0.22891]
[1741028254736,0.0008084,87412.0,87360.0,0.39980496]
[1741028254911,0.0008084,87412.0,87370.0,0.228909]
[1741028255280,0.01793866,87392.0,87371.0,0.00160219]
[1741028255451,0.0008084,87412.0,87393.0,0.22885]
[1741028255664,0.228789,87417.0,87395.0,0.228844]
[1741028255855,0.0453,87422.0,87396.0,0.00160176]
[1741028256060,0.228802,87412.0,87391.0,0.00160162]
[1741028256264,0.0467,87445.0,87400.0,0.39980496]
[1741028256468,0.0467,87480.0,87437.0,0.228736]
[1741028256624,0.0467,87480.0,87410.0,0.39980496]
[1741028256625,0.0008084,87474.0,87410.0,0.39980496]
[1741028256832,0.0008084,87474.0,87411.0,0.0016009]
[1741028257038,0.22872,87444.0,87411.0,0.0016009]
[1741028257256,0.0467,87480.0,87411.0,0.0016009]
[1741028257464,0.228668,87463.0,87420.0,0.39980496]
[1741028257660,0.0001702,87471.0,87421.0,0.00160112]
[1741028257661,0.0011488,87461.0,87421.0,0.00160112]
[1741028257836,0.228697,87452.0,87422.0,0.00160119]
[1741028258053,0.0003404,87461.0,87437.0,0.228736]
[1741028258262,5e-07,87438.0,87437.0,0.228736]
[1741028258474,5e-07,87447.0,87446.0,0.228712]
[1741028258919,5e-07,87447.0,87446.0,0.528712]
[1741028259548,0.228726,87441.0,87420.0,0.62858296]
[1741028259774,5e-07,87447.0,87420.0,0.39980496]
[1741028259980,5e-07,87447.0,87410.0,0.39980496]
[1741028260177,5e-07,87447.0,87411.0,0.00160131]
[1741028260413,5e-07,87447.0,87400.0,0.39980496]
[1741028260539,5e-07,87447.0,87401.0,0.0016013]
[1741028260812,0.3,87445.0,87403.0,0.228823]
[1741028260951,0.0008084,87444.0,87399.0,0.16544]
[1741028261148,5e-07,87447.0,87424.0,0.228768]
[1741028261371,0.228785,87419.0,87400.0,0.39980496]
[1741028261554,0.228785,87419.0,87366.0,0.1]
[1741028261555,0.01454085,87444.0,87380.0,0.39980496]
[1741028261748,0.3,87437.0,87400.0,0.39980496]
[1741028261955,0.0008084,87436.0,87370.0,1.09980496]
[1741028262168,0.1259,87435.0,87384.0,0.228872]
[1741028262390,0.3008084,87434.0,87390.0,0.39980496]
[1741028262598,0.1259,87435.0,87410.0,0.228806]
[1741028262803,0.228765,87426.0,87401.0,0.22883]
[1741028263052,0.0008084,87425.0,87398.0,0.228837]
[1741028263224,0.3,87434.0,87390.0,0.39980496]
[1741028263225,0.228782,87420.0,87400.0,0.22883]
[1741028263445,0.1259,87435.0,87400.0,0.228831]
[1741028263646,0.3008084,87434.0,87390.0,0.39980496]
[1741028263884,0.3,87434.0,87399.0,0.228835]
[1741028264090,0.0008084,87433.0,87404.0,0.228819]
[1741028264293,5e-07,87447.0,87420.0,0.39980496]
[1741028264537,5e-07,87447.0,87400.0,0.39980496]
[1741028264538,0.0008089,87447.0,87400.0,0.39980496]
[1741028264747,0.228745,87434.0,87414.0,0.228794]
[1741028264950,0.0008084,87433.0,87395.0,0.16536]
[1741028265147,0.01454085,87442.0,87396.0,0.00160144]
[1741028265350,5e-07,87447.0,87392.0,0.228851]
[1741028265351,0.228809,87410.0,87392.0,0.228851]
[1741028265591,0.3,87438.0,87393.0,0.00160174]
[1741028265806,0.3,87438.0,87372.0,0.16536]
[1741028265807,0.3,87435.0,87381.0,0.3]
[1741028266107,0.228749,87432.0,87408.0,0.22881]
[1741028266309,0.228743,87435.0,87409.0,0.23040832]
[1741028266464,0.228747,87433.0,87410.0,0.00160143]
[1741028266664,0.22876,87428.0,87400.0,0.0003386]
[1741028266867,0.0008084,87427.0,87400.0,0.0003386]
[1741028267083,0.2288,87413.0,87400.0,0.0003386]
[1741028267283,0.228766,87426.0,87407.0,0.228813]
[1741028267487,0.3,87432.0,87411.0,0.228802]
[1741028267809,0.0001693,87444.0,87400.0,0.0003386]
[1741028267810,0.0001693,87444.0,87423.0,0.228772]
[1741028268149,0.228743,87435.0,87400.0,0.0003386]
[1741028268272,0.228736,87437.0,87419.0,0.228781]
[1741028268481,0.0001693,87444.0,87404.0,0.228821]
[1741028268681,0.0001693,87444.0,87425.0,0.228767]
[1741028268882,0.0001693,87444.0,87400.0,0.0003386]
[1741028268883,0.0001693,87444.0,87400.0,0.40014356]
[1741028269242,0.0008084,87443.0,87401.0,0.01224884]
[1741028269468,0.0008084,87443.0,87402.0,0.228827]
[1741028269660,0.0008084,87443.0,87401.0,0.01064755]
[1741028269818,0.0001693,87444.0,87402.0,0.00160133]
[1741028270465,0.0008084,87443.0,87414.0,0.228794]
[1741028270646,0.0008084,87443.0,87401.0,0.01064755]
[1741028270942,0.228752,87431.0,87403.0,0.01064755]
[1741028271143,0.228757,87429.0,87410.0,0.228805]
[1741028271301,0.228778,87421.0,87403.0,0.01064755]
[1741028271689,0.0008084,87420.0,87403.0,0.01064755]
[1741028271892,0.228822,87404.0,87403.0,0.01064755]
[1741028272327,0.52883,87401.0,87363.0,0.00160212]
[1741028272532,0.228924,87365.0,87364.0,0.7]
[1741028272732,0.22891,87371.0,87336.0,0.01166798]
[1741028272950,0.31454085,87399.0,87344.0,0.228979]
[1741028272951,0.228859,87390.0,87344.0,0.228979]
[1741028273122,0.22893,87363.0,87344.0,0.228979]
[1741028273375,0.22893,87363.0,87345.0,0.00160256]
[1741028273575,0.0008084,87362.0,87329.0,0.229018]
[1741028273914,0.0788,87385.0,87330.0,0.39980496]
[1741028274153,0.0008084,87384.0,87343.0,0.00160262]
[1741028274417,0.0473,87416.0,87360.0,0.39980496]
[1741028274678,0.2296014,87415.0,87362.0,0.3]
[1741028274916,0.0473,87443.0,87391.0,0.3]
[1741028275126,0.0473,87443.0,87392.0,0.00160137]
[1741028275328,0.0473,87443.0,87363.0,0.1292]
[1741028275329,0.0481084,87443.0,87393.0,0.00160158]
[1741028275536,0.0473,87443.0,87407.0,0.228814]
[1741028275750,0.0473,87443.0,87408.0,0.00160134]
[1741028275751,0.228738,87436.0,87408.0,0.00160134]
[1741028276005,0.228744,87434.0,87409.0,0.228809]
[1741028276202,0.0008084,87433.0,87386.0,0.1652]
[1741028276401,0.228826,87403.0,87386.0,0.1652]
[1741028276617,0.01454085,87438.0,87386.0,0.1652]
[1741028276760,0.228795,87415.0,87387.0,0.0016018]
[1741028276963,0.0473,87443.0,87387.0,0.0016018]
[1741028277172,0.228759,87429.0,87403.0,0.228823]
[1741028277370,0.0473,87443.0,87404.0,0.00160152]
[1741028277572,0.228763,87427.0,87407.0,0.228814]
[1741028277770,0.228732,87439.0,87408.0,0.23041244]
[1741028277972,0.0008084,87438.0,87402.0,0.228825]
[1741028278171,0.228766,87426.0,87406.0,0.228815]
[1741028278373,0.228758,87429.0,87407.0,0.00160144]
[1741028278574,0.228763,87427.0,87405.0,0.00160144]
[1741028278806,0.228769,87425.0,87406.0,0.228815]
[1741028279020,0.0473,87443.0,87406.0,0.228815]
[1741028279185,0.228724,87442.0,87407.0,0.00160152]
[1741028279403,0.0473,87443.0,87401.0,0.00160134]
[1741028279590,0.228717,87445.0,87427.0,0.228761]
[1741028279822,0.2287,87451.0,87423.0,0.22877]
[1741028280170,0.22872,87443.0,87423.0,0.22877]
[1741028280340,0.228717,87445.0,87400.0,0.74339136]
[1741028280341,0.0003404,87461.0,87432.0,0.228747]
[1741028280554,0.228686,87457.0,87433.0,0.00160118]
[1741028280748,0.0008084,87443.0,87400.0,0.04678924]
[1741028280954,0.0008084,87442.0,87401.0,0.00160119]
[1741028281194,0.3,87439.0,87400.0,0.0003384]
[1741028281341,0.22883,87401.0,87400.0,0.0003384]
[1741028282955,0.54337085,87401.0,87400.0,4e-07]
[1741028283164,0.1,87395.0,87318.0,0.16508]
[1741028283364,0.228982,87343.0,87324.0,0.00710273]
[1741028283593,0.228982,87343.0,87324.0,0.0055]
[1741028284312,0.54352285,87343.0,87342.0,1e-06]
[1741028284536,0.229029,87325.0,87324.0,0.0055]
[1741028284855,0.529029,87325.0,87324.0,0.0055]
[1741028285080,0.54356985,87325.0,87324.0,0.0055]
[1741028285288,0.228996,87338.0,87324.0,0.0055]
[1741028285494,0.0008084,87337.0,87324.0,0.0055]
[1741028285695,0.0008084,87353.0,87324.0,0.0055]
[1741028286313,0.0486,87378.0,87324.0,0.0055]
[1741028286443,0.0008084,87374.0,87325.0,0.0016028]
[1741028286654,0.0008084,87377.0,87325.0,0.0016028]
[1741028286853,0.0008084,87377.0,87324.0,0.0055]
[1741028286854,0.3,87369.0,87324.0,0.0055]
[1741028287209,0.3,87348.0,87324.0,0.0055]
[1741028287409,0.229007,87334.0,87324.0,0.0055]
[1741028287619,0.0008084,87333.0,87324.0,0.0055]
[1741028287821,0.229029,87325.0,87324.0,0.0055]
[1741028288054,0.22902,87329.0,87324.0,0.0055]
[1741028288233,0.0817,87348.0,87324.0,0.0055]
[1741028288444,0.0008084,87347.0,87324.0,0.0055]
[1741028288667,0.0785,87384.0,87325.0,0.00160321]
[1741028288868,0.0008084,87383.0,87330.0,0.39980496]
[1741028289068,0.228963,87351.0,87324.0,0.0055]
[1741028289204,0.09468733,87387.0,87325.0,0.00160287]
[1741028289404,0.0008084,87377.0,87324.0,0.0055]
[1741028289605,0.3,87357.0,87324.0,0.0055]
[1741028289805,0.229029,87325.0,87324.0,0.0055]
[1741028290219,0.3,87331.0,87324.0,0.0055]
[1741028290419,0.229007,87334.0,87324.0,0.0055]
[1741028290616,0.229025,87327.0,87324.0,0.0055]
[1741028290918,0.0457,87369.0,87324.0,0.0058386]
[1741028291133,0.343381,87367.0,87324.0,0.0058386]
[1741028291340,0.0008084,87366.0,87324.0,0.0058386]
[1741028291541,0.0008084,87366.0,87329.0,0.229018]
[1741028291777,0.01454085,87361.0,87324.0,0.0058386]
[1741028292106,0.229003,87335.0,87324.0,0.0058386]
[1741028292292,0.228963,87351.0,87325.0,0.00160304]
[1741028292507,0.0457,87369.0,87325.0,0.00160304]
[1741028292799,0.0467,87390.0,87330.0,0.39980496]
[1741028293032,0.1,87409.0,87341.0,0.3]
[1741028293033,0.0813,87409.0,87341.0,0.3]
[1741028293234,0.0008084,87408.0,87360.0,0.39980496]
[1741028293439,0.0008084,87408.0,87395.0,0.228846]
[1741028293647,0.0008084,87419.0,87361.0,0.16508]
[1741028293848,0.0008084,87395.0,87347.0,0.16504]
[1741028293977,0.0008084,87395.0,87348.0,0.0016024]
[1741028294184,0.09468733,87418.0,87351.0,0.3]
[1741028294387,0.39980496,87410.0,87352.0,0.00160204]
[1741028294588,0.39980496,87390.0,87330.0,0.229014]
[1741028294972,0.39980496,87390.0,87320.0,0.61154496]
[1741028294973,0.228916,87369.0,87331.0,0.00160263]
[1741028295143,0.0477,87399.0,87333.0,0.3]
[1741028295386,0.0477,87399.0,87345.0,0.3]
[1741028295557,0.228983,87343.0,87320.0,0.16504]
[1741028295768,0.39980496,87380.0,87324.0,0.00744154]
[1741028295769,0.228959,87352.0,87324.0,0.00744154]
[1741028296006,0.39980496,87390.0,87324.0,0.00744138]
[1741028296155,0.228949,87356.0,87334.0,0.3]
[1741028296380,0.228957,87353.0,87335.0,0.229]
[1741028296565,0.228957,87353.0,87338.0,0.3]
[1741028296990,0.01454085,87372.0,87324.0,0.0058386]
[1741028297306,0.22896,87352.0,87324.0,0.0058386]
[1741028297514,0.01454085,87379.0,87324.0,0.3058386]
[1741028297808,0.457765,87381.0,87325.0,0.00160297]
[1741028298040,1.144308,87389.0,87328.0,0.3]
[1741028298216,0.3,87388.0,87329.0,0.00160294]
[1741028298435,0.39980496,87390.0,87324.0,0.3058386]
[1741028298436,0.39980496,87400.0,87330.0,0.39980496]
[1741028298573,0.05722809,87452.0,87324.0,0.0058386]
[1741028298574,0.228882,87382.0,87341.0,0.3]
[1741028298811,0.228868,87387.0,87342.0,0.00160247]
[1741028299156,0.0823,87407.0,87342.0,0.00160247]
[1741028299157,0.228872,87385.0,87370.0,0.228911]
[1741028299331,0.3,87406.0,87346.0,0.165]
[1741028299510,0.0823,87407.0,87350.0,0.39980496]
[1741028299707,0.228887,87380.0,87364.0,0.228927]
[1741028299940,0.0823,87407.0,87352.0,0.228958]
[1741028300152,0.3,87389.0,87328.0,0.165]
[1741028300319,0.01454085,87378.0,87321.0,0.00160276]
[1741028300516,0.228893,87377.0,87325.0,0.00160294]
[1741028300776,0.0477,87399.0,87340.0,0.39980496]
[1741028301076,0.3,87398.0,87331.0,0.3]
[1741028301291,0.3,87396.0,87340.0,0.39980496]
[1741028301446,0.0477,87399.0,87341.0,0.00160259]
[1741028301651,0.3,87389.0,87331.0,0.3]
[1741028301875,0.3,87389.0,87332.0,0.00160277]
[1741028302124,0.0477,87399.0,87333.0,0.00160267]
[1741028302349,0.0477,87399.0,87351.0,0.3]
[1741028302579,0.0477,87399.0,87352.0,0.0016022]
[1741028302779,0.228915,87369.0,87352.0,0.0016022]
[1741028302980,0.3477,87399.0,87331.0,0.00160248]
[1741028303191,0.3747505,87398.0,87331.0,0.00194108]
[1741028303404,0.3747505,87398.0,87334.0,0.229003]
[1741028303405,0.31454085,87389.0,87334.0,0.229003]
[1741028303611,0.31454085,87389.0,87331.0,0.0003386]
[1741028303819,0.31454085,87389.0,87332.0,0.00160282]
[1741028304031,0.0477,87399.0,87332.0,0.00160282]
[1741028304204,0.0477,87399.0,87341.0,0.3]
[1741028304406,0.22885,87394.0,87351.0,0.3]
[1741028304607,0.0477,87399.0,87368.0,0.228916]
[1741028304813,0.0477,87399.0,87351.0,0.3]
[1741028304986,0.0454,87421.0,87361.0,0.3]
[1741028305168,0.228826,87403.0,87388.0,0.228862]
[1741028305371,0.0454,87421.0,87390.0,0.39980496]
[1741028305572,0.00549,87430.0,87391.0,0.30160182]
[1741028305776,0.00549,87430.0,87370.0,0.39980496]
[1741028305977,0.00549,87430.0,87373.0,0.00875506]
[1741028305978,0.228842,87397.0,87373.0,0.00875506]
[1741028306185,0.00549,87430.0,87380.0,0.39980496]
[1741028306439,0.00549,87430.0,87398.0,0.228838]
[1741028306641,0.228832,87401.0,87381.0,0.3]
[1741028306858,0.3,87429.0,87371.0,0.17359493]
[1741028307166,0.228846,87395.0,87375.0,0.228896]
[1741028307367,0.3,87413.0,87371.0,0.00867493]
[1741028307521,0.01454085,87409.0,87371.0,0.00867493]
[1741028307721,0.228798,87413.0,87372.0,0.00160237]
[1741028307968,0.228827,87402.0,87361.0,0.30160206]
[1741028308172,0.228839,87398.0,87362.0,0.00160209]
[1741028308379,0.228839,87398.0,87359.0,0.01702982]
[1741028308380,0.01454085,87410.0,87359.0,0.01702982]
[1741028308580,0.01454085,87408.0,87359.0,0.01702982]
[1741028308747,0.3,87413.0,87360.0,0.23053935]
[1741028308949,0.39980496,87410.0,87359.0,0.01702982]
[1741028309152,0.1279,87414.0,87361.0,0.3]
[1741028309351,0.1279,87414.0,87350.0,0.3115218]
[1741028309352,0.1279,87414.0,87351.0,0.3]
[1741028309576,0.39980496,87410.0,87352.0,0.0016023]
[1741028309775,0.39980496,87410.0,87328.0,0.42533]
[1741028309776,0.31454085,87379.0,87317.0,0.00859286]
[1741028309978,0.31454085,87379.0,87297.0,0.0463]
[1741028309979,0.229,87337.0,87318.0,0.00160291]
[1741028310214,0.229011,87332.0,87319.0,0.229043]
[1741028310416,0.3,87369.0,87328.0,0.229019]
[1741028310712,0.228916,87368.0,87332.0,0.00160294]
[1741028310922,0.0815,87392.0,87334.0,0.3]
[1741028311045,0.0458,87398.0,87349.0,0.343447]
[1741028311240,0.0458,87398.0,87350.0,0.40140742]
[1741028311564,0.0458,87398.0,87361.0,0.228933]
[1741028311763,0.228908,87372.0,87358.0,0.228941]
[1741028312187,0.0458,87398.0,87350.0,0.228961]
[1741028312389,0.0458,87398.0,87359.0,0.228938]
[1741028312598,0.0458,87398.0,87343.0,0.16484]
[1741028312751,0.0458,87398.0,87344.0,0.00160249]
[1741028312952,0.0815,87407.0,87344.0,0.00160249]
[1741028312953,0.457644,87404.0,87344.0,0.00160249]
[1741028313209,0.0815,87407.0,87353.0,0.3]
[1741028313413,0.228887,87380.0,87365.0,0.228922]
[1741028313586,0.0815,87407.0,87356.0,0.3]
[1741028313814,0.0001693,87417.0,87369.0,0.3]
[1741028314028,0.228792,87416.0,87381.0,0.3]
[1741028314202,0.0001693,87417.0,87383.0,0.3]
[1741028314408,0.0001693,87417.0,87399.0,0.3]
[1741028314623,0.0001693,87417.0,87416.0,0.228791]
[1741028314922,0.0001693,87417.0,87394.0,0.0113926]
[1741028315126,0.0001693,87417.0,87416.0,0.228791]
[1741028315552,0.0001693,87417.0,87416.0,0.528791]
[1741028315883,0.00549,87430.0,87429.0,0.528757]
[1741028315884,0.00455559,87430.0,87429.0,0.528757]
[1741028316925,5.9e-07,87430.0,87429.0,0.528757]
[1741028317332,0.09468733,87462.0,87446.0,0.574612]
[1741028317333,5.9e-07,87447.0,87446.0,0.574612]
[1741028317498,4e-07,87484.0,87465.0,0.0815]
[1741028317734,4e-07,87484.0,87483.0,0.528615]
[1741028318085,0.00566,87535.0,87499.0,0.528574]
[1741028318285,0.228484,87534.0,87499.0,0.528574]
[1741028318491,0.00566,87535.0,87499.0,0.228574]
[1741028318906,9e-07,87505.0,87504.0,0.52856]
[1741028319107,9e-07,87518.0,87517.0,0.528527]
[1741028319238,1e-07,87532.0,87531.0,0.52849]
[1741028319441,0.06739762,87601.0,87527.0,0.04645084]
[1741028319638,0.06739762,87601.0,87540.0,0.39980496]
[1741028319844,0.01147571,87612.0,87550.0,0.62824396]
[1741028320070,0.0001699,87572.0,87551.0,0.00159843]
[1741028320245,0.0001699,87572.0,87528.0,0.00880068]
[1741028320448,0.0001699,87572.0,87520.0,0.39980496]
[1741028320647,0.0001699,87572.0,87521.0,0.0015992]
[1741028320848,0.00159843,87571.0,87531.0,0.228488]
[1741028321076,0.0001699,87572.0,87511.0,0.3]
[1741028321275,0.3,87569.0,87516.0,0.228528]
[1741028321529,0.3,87569.0,87500.0,0.41405308]
[1741028321530,0.01454085,87547.0,87500.0,0.0055]
[1741028321762,0.00159843,87546.0,87502.0,0.228566]
[1741028321886,0.00159843,87545.0,87510.0,0.39980496]
[1741028322091,0.00159843,87550.0,87511.0,0.0015994]
[1741028322293,0.228493,87530.0,87511.0,0.228541]
[1741028322548,0.342606,87564.0,87512.0,0.00159954]
[1741028322755,0.0001699,87572.0,87512.0,0.00159954]
[1741028322977,0.00159843,87567.0,87529.0,0.228494]
[1741028323188,0.00159843,87571.0,87530.0,0.00159915]
[1741028323404,0.228412,87561.0,87530.0,0.00159915]
[1741028323531,0.0001699,87572.0,87531.0,0.3]
[1741028323733,0.0001699,87572.0,87571.0,0.528386]
[1741028323952,0.0003396,87625.0,87579.0,0.228362]
[1741028324298,0.00159843,87610.0,87576.0,0.228372]
[1741028324436,0.228333,87592.0,87560.0,0.39980496]
[1741028324640,0.228333,87592.0,87577.0,0.3]
[1741028324837,0.0003396,87611.0,87578.0,0.00159846]
[1741028325085,0.57560496,87640.0,87572.0,0.00159836]
[1741028325292,0.39980496,87620.0,87553.0,0.16448]
[1741028325494,0.22157129,87590.0,87574.0,0.3]
[1741028325716,0.01454085,87628.0,87570.0,0.3]
[1741028325904,0.39980496,87600.0,87545.0,0.00838879]